fUST/lending_fUST_20251206
["ID","MTS","AMOUNT","RATE_DAILY","PERIOD"]
[396496126,1765005113968,-162.62681283,0.00010554,2]
[396496127,1765005117922,-278.28527676,0.00010554,2]
[396496128,1765005120553,-248.33166061,0.00010554,2]
[396496129,1765005122580,-212.74402909,0.00010554,2]
[396496130,1765005123996,-20000.0,0.00010554,2]
[396496131,1765005124121,-270.81036288,0.00010554,2]
[396496132,1765005125845,-454.16203179,0.00010554,2]
[396496133,1765005125934,4664.29151907,0.00010554,2]
[396496134,1765005127178,-155.76528857,0.00010554,2]
[396496135,1765005132233,-151.00865929,0.00010554,2]
[396496136,1765005134511,20.75062862,0.00010554,2]
[396496137,1765005134558,4979.24937138,0.00010554,2]
[396496138,1765005134589,-259.52644548,0.00010554,2]
[396496139,1765005137437,-171.74163136,0.00010554,2]
[396496140,1765005139592,-281.43535408,0.00010554,2]
[396496141,1765005140890,152.48,8.3e-05,2]
[396496142,1765005141176,152.48,8.4e-05,2]
[396496143,1765005141505,152.48,8.6e-05,2]
[396496144,1765005141703,500.0,0.00010553,2]
[396496145,1765005141791,500.0,0.00010553,2]
[396496146,1765005141847,152.48,8.7e-05,2]
[396496147,1765005141905,222.2176238,0.00010553,2]
[396496148,1765005142058,152.48,8.9e-05,2]
[396496149,1765005142398,152.48,9e-05,2]
[396496150,1765005142605,-20000.0,0.00010554,2]
[396496151,1765005142702,152.48,9.2e-05,2]
[396496152,1765005142813,-221.977298,0.00010554,2]
[396496153,1765005143011,152.48,9.3e-05,2]
[396496154,1765005143588,152.48,9.5e-05,2]
[396496155,1765005143788,152.48,9.6e-05,2]
[396496156,1765005143919,152.48,9.8e-05,2]
[396496157,1765005144649,152.48,9.9e-05,2]
[396496158,1765005144761,152.48,0.000101,2]
[396496159,1765005144902,152.48,0.000102,2]
[396496160,1765005145096,152.48,0.000104,2]
[396496161,1765005145370,152.48,0.000105,2]
[396496162,1765005145460,-218.56464592,0.00010554,2]
[396496163,1765005146071,150.0,8.404e-05,2]
[396496164,1765005146490,150.0,9.168e-05,2]
[396496165,1765005147116,204.72,9.932e-05,2]
[396496166,1765005151283,196.15487986,0.00010553,2]
[396496167,1765005157751,657.98812496,0.00010554,2]
[396496168,1765005157796,4342.01187504,0.00010554,2]
[396496169,1765005165927,-5657.99812496,0.00010554,2]
[396496170,1765005166192,-10000.01,0.00010554,2]
[396496171,1765005167468,-10000.01,0.00010554,2]
[396496172,1765005167654,-10000.01,0.00010554,2]
[396496173,1765005167839,-10000.01,0.00010554,2]
[396496174,1765005177477,-503.4073117,9.799e-05,2]
[396496175,1765005179768,797.6265058,9.701e-05,2]
[396496176,1765005186103,-294.2191941,9.799e-05,2]
[396496177,1765005191026,152.47,8.3e-05,2]
[396496178,1765005191307,152.47,8.4e-05,2]
[396496179,1765005191728,152.47,8.6e-05,2]
[396496180,1765005191963,152.47,8.8e-05,2]
[396496181,1765005192360,152.47,9e-05,2]
[396496182,1765005192661,152.47,9.2e-05,2]
[396496183,1765005192941,152.47,9.4e-05,2]
[396496184,1765005193290,152.47,9.6e-05,2]
[396496185,1765005201223,-152.47,9.8e-05,2]
[396496186,1765005201248,-152.47,0.0001,2]
[396496187,1765005201273,-69.79538773,0.000102,2]
[396496188,1765005201820,152.47,9.702e-05,2]
[396496189,1765005216767,-82.67461227,0.000102,2]
[396496190,1765005223827,150.0,8.31e-05,2]
[396496191,1765005224265,201.17,9.066e-05,2]
[396496192,1765005224754,301.76,9.821e-05,2]
[396496193,1765005225523,5000.0,0.000102,2]
[396496194,1765005247712,5000.0,0.0001037,2]
[396496195,1765005250494,152.56,8.3e-05,2]
[396496196,1765005251218,152.56,8.5e-05,2]
[396496197,1765005251592,152.56,8.8e-05,2]
[396496198,1765005251916,152.56,9.1e-05,2]
[396496199,1765005252273,152.56,9.4e-05,2]
[396496200,1765005252551,152.56,9.7e-05,2]
[396496201,1765005252822,152.56,0.0001,2]
[396496202,1765005253207,152.56,0.000103,2]
[396496203,1765005256604,5000.0,0.00010373,2]
[396496204,1765005273482,5000.0,0.00010373,2]
[396496205,1765005282514,0.01,0.00010373,2]
[396496206,1765005282562,4999.99,0.00010373,2]
[396496207,1765005283203,1863.6512392,9.738e-05,2]
[396496208,1765005297521,3136.3687608,0.00010373,2]
[396496209,1765005297568,1863.6312392,0.00010373,2]
[396496210,1765005301805,150.0,8.302e-05,2]
[396496211,1765005302278,264.76,9.057e-05,2]
[396496212,1765005302706,397.13,9.811e-05,2]
[396496213,1765005305778,5000.0,0.00010373,2]
[396496214,1765005307920,152.67,8.3e-05,2]
[396496215,1765005308304,152.67,8.7e-05,2]
[396496216,1765005308585,152.67,9.1e-05,2]
[396496217,1765005309572,152.67,9.5e-05,2]
[396496218,1765005309944,152.67,9.9e-05,2]
[396496219,1765005310340,152.67,0.000103,2]
[396496220,1765005314520,696.27413254,0.00010373,2]
[396496221,1765005321692,712.19462826,0.00010373,2]
[396496222,1765005321744,4287.80537174,0.00010373,2]
[396496223,1765005330345,5000.0,0.00010373,2]
[396496224,1765005338317,712.20462826,0.00010373,2]
[396496225,1765005338373,3312.64524158,0.00010373,2]
[396496226,1765005346197,5000.0,0.00010373,2]
[396496227,1765005354001,1687.36475842,0.00010373,2]
[396496228,1765005354055,3312.63524158,0.00010373,2]
[396496229,1765005367377,152.67,8.3e-05,2]
[396496230,1765005367983,152.67,9e-05,2]
[396496231,1765005368138,152.67,9.7e-05,2]
[396496232,1765005369144,5000.0,0.00010373,2]
[396496233,1765005377443,1229.36475842,0.00010373,2]
[396496234,1765005377498,3770.63524158,0.00010373,2]
[396496235,1765005382407,150.0,8.285e-05,2]
[396496236,1765005382837,244.09,9.039e-05,2]
[396496237,1765005383359,366.13,9.792e-05,2]
[396496238,1765005385713,503.79071145,0.00010373,2]
[396496239,1765005393518,5000.0,0.00010373,2]
[396496240,1765005402078,4130.08928855,0.00010373,2]
[396496241,1765005402134,869.91071145,0.00010373,2]
[396496242,1765005417475,5000.0,0.00010373,2]
[396496243,1765005425295,4130.09928855,0.00010373,2]
[396496244,1765005425349,869.90071145,0.00010373,2]
[396496245,1765005426242,152.78,8.3e-05,2]
[396496246,1765005427200,152.78,9.2e-05,2]
[396496247,1765005427738,152.78,0.000102,2]
[396496248,1765005441031,5000.0,0.00010375,2]
[396496249,1765005448936,5000.0,0.00010375,2]
[396496250,1765005464204,0.01,0.00010375,2]
[396496251,1765005464260,4999.99,0.00010375,2]
[396496252,1765005464572,150.0,8.28e-05,2]
[396496253,1765005464746,297.43,9.032e-05,2]
[396496254,1765005465057,446.14,9.785e-05,2]
[396496257,1765005472521,4106.45,0.00010375,2]
[396496258,1765005472568,893.55,0.00010375,2]
[396496259,1765005484539,152.77,8.3e-05,2]
[396496260,1765005484858,152.77,0.000102,2]
[396496261,1765005488188,5000.0,0.00010378,2]
[396496262,1765005495975,4694.47,0.00010378,2]
[396496263,1765005496036,305.53,0.00010378,2]
[396496264,1765005511757,5000.0,0.00010378,2]
[396496265,1765005519508,4694.48,0.00010378,2]
[396496266,1765005519564,305.52,0.00010378,2]
[396496267,1765005535807,5000.0,0.00010378,2]
[396496268,1765005543833,150.0,8.401e-05,2]
[396496269,1765005544027,152.77,8.3e-05,2]
[396496270,1765005544269,274.68,9.165e-05,2]
[396496271,1765005544536,4117.04,0.00010378,2]
[396496272,1765005544587,882.96,0.00010378,2]
[396496273,1765005544665,412.03,9.929e-05,2]
[396496274,1765005559759,5000.0,0.00010378,2]
[396496275,1765005567569,3705.02,0.00010378,2]
[396496276,1765005567621,1294.98,0.00010378,2]
[396496277,1765005582730,5000.0,0.00010378,2]
[396496278,1765005591030,3705.03,0.00010378,2]
[396496279,1765005606272,-169.08018986,0.00010378,2]
[396496280,1765005607209,5000.0,0.00010372,2]
[396496281,1765005612941,-173.86943059,0.00010378,2]
[396496282,1765005615437,-204.64400382,0.00010378,2]
[396496283,1765005617605,-303.20711622,0.00010378,2]
[396496284,1765005623418,-176.45544528,0.00010378,2]
[396496285,1765005624927,150.0,8.411e-05,2]
[396496286,1765005625349,288.66,9.175e-05,2]
[396496287,1765005625749,433.0,9.94e-05,2]
[396496288,1765005629163,4128.35,0.00010372,2]
[396496289,1765005629218,871.65,0.00010372,2]
[396496290,1765005629373,-193.67545728,0.00010378,2]
[396496291,1765005651612,5000.0,0.00010372,2]
[396496292,1765005674465,4128.36,0.00010372,2]
[396496293,1765005674518,871.64,0.00010372,2]
[396496294,1765005696552,5000.0,0.00010372,2]
[396496295,1765005704649,472.6,0.0001,2]
[396496296,1765005705697,472.6,0.0001,2]
[396496297,1765005705992,150.0,8.389e-05,2]
[396496298,1765005706403,290.51,9.151e-05,2]
[396496299,1765005706566,472.6,0.0001,2]
[396496300,1765005706799,435.77,9.914e-05,2]
[396496301,1765005707566,472.6,0.0001,2]
[396496302,1765005708449,472.6,0.0001,2]
[396496303,1765005709306,472.6,0.0001,2]
[396496304,1765005718562,5000.0,0.00010372,2]
[396496305,1765005740644,4054.81,0.00010372,2]
[396496306,1765005740698,945.19,0.00010372,2]
[396496307,1765005762703,5000.0,0.00010372,2]
[396496308,1765005786362,4054.82,0.00010372,2]
[396496309,1765005786414,945.18,0.00010372,2]
[396496310,1765005786842,150.35,8.305e-05,2]
[396496311,1765005787252,300.7,9.06e-05,2]
[396496312,1765005794589,451.05,9.717e-05,2]
[396496313,1765005795468,-300.0,9.815e-05,2]
[396496315,1765005810110,151.05,9.717e-05,2]
[396496316,1765005817691,151.05,9.717e-05,2]
[396496317,1765005832974,151.05,9.717e-05,2]
[396496318,1765005840823,151.05,9.717e-05,2]
[396496319,1765005855801,151.05,9.717e-05,2]
[396496320,1765005864400,151.05,9.717e-05,2]
[396496321,1765005868145,151.62,8.302e-05,2]
[396496322,1765005868574,303.23,9.056e-05,2]
[396496323,1765005876042,-236.05176843,9.811e-05,2]
[396496324,1765005880555,218.79823157,9.713e-05,2]
[396496325,1765005888485,218.79823157,9.713e-05,2]
[396496326,1765005905165,218.79823157,9.713e-05,2]
[396496327,1765005913517,218.79823157,9.713e-05,2]
[396496328,1765005914536,-218.79823157,9.811e-05,2]
[396496329,1765005914576,-45.63764361,0.00010094,2]
[396496388,1765005928977,5000.0,0.00010085,2]
[396496389,1765005936927,5000.0,0.00010085,2]
[396496390,1765005948875,0.01,8.286e-05,2]
[396496391,1765005948925,149.99,8.286e-05,2]
[396496392,1765005949299,292.15,9.039e-05,2]
[396496393,1765005949707,438.22,9.792e-05,2]
[396496394,1765005952505,5000.0,0.00010085,2]
[396496429,1765005960338,4119.65,0.00010085,2]
[396496431,1765005960393,880.35,0.00010085,2]
[396496523,1765005976476,5000.0,0.00010085,2]
[396496535,1765005984785,4119.66,0.00010085,2]
[396496536,1765005984833,880.34,0.00010085,2]
[396496559,1765005992651,170.880544,4.776e-05,2]
[396496560,1765005992960,170.880544,5.97e-05,2]
[396496561,1765005993185,170.880544,7.164e-05,2]
[396496562,1765005993395,170.880544,8.358e-05,2]
[396496563,1765005993632,170.880544,9.552e-05,2]
[396496566,1765006001270,5000.0,0.00010085,2]
[396496567,1765006008943,4145.60728,0.00010085,2]
[396496568,1765006011120,-169.63969826,0.00010085,2]
[396496569,1765006014442,-308.14065233,0.00010085,2]
[396496570,1765006015385,-376.61236941,0.00010085,2]
[396496571,1765006022230,161.21,8.3e-05,2]
[396496572,1765006024185,5000.0,0.00010085,2]
[396496573,1765006029511,150.0,8.286e-05,2]
[396496574,1765006029932,291.51,9.039e-05,2]
[396496576,1765006040217,308.14065233,9.694e-05,2]
[396496577,1765006048679,437.26,9.694e-05,2]
[396496579,1765006057176,437.26,9.694e-05,2]
[396496580,1765006072346,437.26,9.694e-05,2]
[396496581,1765006080120,437.26,9.694e-05,2]
[396496582,1765006095418,437.26,9.694e-05,2]
[396496583,1765006108107,150.0,8.375e-05,2]
[396496584,1765006108512,292.89,9.136e-05,2]
[396496586,1765006112272,-439.33,9.898e-05,2]
[396496587,1765006112302,-151.69426908,0.0001,2]
[396496589,1765006119165,-136.55601135,0.0001,2]
[396496590,1765006119187,-321.79980335,0.0001,2]
[396496591,1765006124365,-217.7319402,9.9e-05,2]
[396496592,1765006127738,918.82407115,9.801e-05,2]
[396496593,1765006127788,-181.1357525,9.9e-05,2]
[396496594,1765006132965,-308.14065233,9.9e-05,2]
[396496595,1765006136104,429.54766632,9.801e-05,2]
[396496596,1765006136864,-257.71210223,9.9e-05,2]
[396496597,1765006140406,-171.83556409,9.9e-05,2]
[396496598,1765006140429,-19.45493023,0.0001,2]
[396496601,1765006143102,-194.02701653,9.999e-05,2]
[396496602,1765006143452,250.0,0.00013092,3]
[396496603,1765006143976,10000.01,9.9e-05,2]
[396496604,1765006144031,8593.21027021,9.9e-05,2]
[396496605,1765006145150,-105.97298347,9.999e-05,2]
[396496606,1765006145175,-236.3304207,0.0001,2]
[396496607,1765006149567,-314.71978781,0.0001,2]
[396496608,1765006151098,-107.69505791,0.0001,2]
[396496609,1765006151121,-270.25213703,0.0001,2]
[396496610,1765006155892,1406.79972979,9.9e-05,2]
[396496611,1765006155943,10000.01,9.9e-05,2]
[396496612,1765006155991,892.01009819,9.9e-05,2]
[396496613,1765006157453,-365.45370483,0.0001,2]
[396496614,1765006165122,-609.10882227,9.9e-05,2]
[396496615,1765006165142,-890.19051083,0.0001,2]
[396496616,1765006166648,-220.0,0.0001,2]
[396496617,1765006168266,-297.66125936,0.0001,2]
[396496618,1765006174525,-235.57215521,9.9e-05,2]
[396496619,1765006175956,-253.90223388,9.9e-05,2]
[396496620,1765006180528,-221.61461118,9.9e-05,2]
[396496621,1765006182832,-373.25070391,9.9e-05,2]
[396496622,1765006188145,150.0,8.391e-05,2]
[396496623,1765006188753,270.43,9.154e-05,2]
[396496624,1765006190903,-174.9151614,9.801e-05,2]
[396496625,1765006196603,-125.0848386,9.801e-05,2]
[396496626,1765006196633,-371.51073899,9.9e-05,2]
[396496627,1765006199439,-442.92667612,9.9e-05,2]
[396496629,1765006204038,-719.84628147,9.801e-05,2]
[396496630,1765006204868,-185.24545262,9.899e-05,2]
[396496631,1765006212130,-114.75454738,9.899e-05,2]
[396496632,1765006212154,-231.0,9.899e-05,2]
[396496633,1765006212177,-90.50964543,9.899e-05,2]
[396496634,1765006214481,-209.49035457,9.899e-05,2]
[396496635,1765006214505,-38.52175515,9.899e-05,2]
[396496636,1765006220934,-243.35538026,9.899e-05,2]
[396496637,1765006224337,-300.0,9.899e-05,2]
[396496638,1765006229961,-239.55559397,9.8e-05,2]
[396496649,1765006232648,-225.77268511,9.8e-05,2]
[396496675,1765006238237,-452.79458551,9.8e-05,2]
[396496676,1765006238260,-191.6444374,9.85e-05,2]
[396496677,1765006238283,-166.1567945,9.899e-05,2]
[396496696,1765006241307,-3e-08,9.899e-05,2]
[396496697,1765006241351,-281.95289885,9.899e-05,2]
[396496725,1765006243216,-170.01317121,9.899e-05,2]
[396496729,1765006243241,-397.39408342,9.9e-05,2]
[396496743,1765006243371,-5105.27622,9.9e-05,2]
[396496846,1765006245107,-337.83106308,9.9e-05,2]
[396496855,1765006246293,-1502.95,9.9e-05,2]
[396496856,1765006247934,-202.41271743,9.9e-05,2]
[396496857,1765006250923,-162.20338691,9.801e-05,2]
[396496858,1765006252497,-249.84430958,9.801e-05,2]
[396496859,1765006256195,-377.48557727,9.801e-05,2]
[396496860,1765006259136,-165.33395438,9.801e-05,2]
[396496861,1765006261218,-161.57926918,9.801e-05,2]
[396496862,1765006263472,-180.45131597,9.801e-05,2]
[396496863,1765006269378,150.0,8.456e-05,2]
[396496864,1765006269752,259.73,9.224e-05,2]
[396496865,1765006270975,-191.14585261,9.801e-05,2]
[396496866,1765006275519,-214.98371329,9.801e-05,2]
[396496867,1765006277578,-253.90009219,9.801e-05,2]
[396496868,1765006279180,-331.98134669,9.801e-05,2]
[396496869,1765006283440,-368.40677669,9.801e-05,2]
[396496870,1765006286145,-73.43393789,9.801e-05,2]
[396496871,1765006286169,-214.06772009,9.9e-05,2]
[396496872,1765006293337,-195.45039392,9.801e-05,2]
[396496873,1765006297639,-267.33182564,9.801e-05,2]
[396496874,1765006298229,332.9520519,9.703e-05,2]
[396496875,1765006300844,-448.08026144,9.801e-05,2]
[396496876,1765006303682,-459.09210735,9.801e-05,2]
[396496877,1765006309319,-343.27707856,9.801e-05,2]
[396496878,1765006312159,-182.38191373,9.801e-05,2]
[396496879,1765006317724,-330.45092802,9.801e-05,2]
[396496880,1765006321093,658.23171073,9.703e-05,2]
[396496881,1765006321596,-300.0,9.801e-05,2]
[396496882,1765006323645,-27.78078271,9.801e-05,2]
[396496883,1765006323674,-472.06755371,9.9e-05,2]
[396496884,1765006327836,-461.46577259,9.9e-05,2]
[396496885,1765006330999,-284.46478645,9.9e-05,2]
[396496886,1765006333163,-155.66487855,9.9e-05,2]
[396496887,1765006344416,300.0,9.703e-05,2]
[396496888,1765006350958,150.0,7.633e-05,2]
[396496889,1765006351377,259.82,8.327e-05,2]
[396496890,1765006351831,389.73,9.021e-05,2]
[396496891,1765006352233,519.64,9.714e-05,2]
[396496892,1765006366142,300.0,9.703e-05,2]
[396496893,1765006367233,-230.89,9.801e-05,2]
[396496894,1765006372834,-69.11,9.801e-05,2]
[396496895,1765006382384,196.05,8.3e-05,2]
[396496896,1765006386379,9665.74,9.122e-05,2]
[396496897,1765006386611,10000.01,9.122e-05,2]
[396496898,1765006386661,10000.01,9.122e-05,2]
[396496899,1765006386711,5721.4739754,9.122e-05,2]
[396496900,1765006387945,-2294.0712042,9.825e-05,2]
[396496901,1765006390184,1081.90947741,9.727e-05,2]
[396496902,1765006397951,2294.0712042,9.825e-05,2]
[396496903,1765006403669,-2294.0712042,9.924e-05,2]
[396496904,1765006420125,-1200.0,9.998e-05,2]
[396496905,1765006420178,-300.0,9.998e-05,2]
[396496906,1765006421307,1500.0,9.898e-05,2]
[396496907,1765006434520,-500.0,9.998e-05,2]
[396496908,1765006434574,-621.15459055,9.998e-05,2]
[396496909,1765006434627,-500.50376547,9.998e-05,2]
[396496910,1765006434685,-500.0,9.998e-05,2]
[396496911,1765006434748,-429.29975288,9.998e-05,2]
[396496912,1765006434802,-500.0,9.998e-05,2]
[396496913,1765006434860,-500.0,9.998e-05,2]
[396496914,1765006434925,-500.0,9.998e-05,2]
[396496915,1765006434984,-500.0,9.998e-05,2]
[396496916,1765006435038,-398.0937822,9.998e-05,2]
[396496917,1765006435211,-101.9062178,9.998e-05,2]
[396496918,1765006435267,-500.0,9.998e-05,2]
[396496919,1765006435324,-500.0,9.998e-05,2]
[396496920,1765006435383,-500.0,9.998e-05,2]
[396496921,1765006435444,-514.51934773,9.998e-05,2]
[396496922,1765006435495,-213.76514293,9.998e-05,2]
[396496923,1765006435546,-500.0,9.998e-05,2]
[396496924,1765006435602,-500.0,9.998e-05,2]
[396496925,1765006435653,-500.0,9.998e-05,2]
[396496926,1765006435709,-500.0,9.998e-05,2]
[396496927,1765006435764,-500.0,9.998e-05,2]
[396496928,1765006435988,-500.0,9.998e-05,2]
[396496929,1765006436044,-500.0,9.998e-05,2]
[396496930,1765006436098,-500.0,9.998e-05,2]
[396496931,1765006436154,-500.0,9.998e-05,2]
[396496932,1765006436213,-500.0,9.998e-05,2]
[396496933,1765006436266,-500.0,9.998e-05,2]
[396496934,1765006436321,-500.0,9.998e-05,2]
[396496935,1765006436377,-500.0,9.998e-05,2]
[396496936,1765006436443,-500.0,9.998e-05,2]
[396496937,1765006436509,-500.0,9.998e-05,2]
[396496938,1765006436736,-500.0,9.998e-05,2]
[396496939,1765006436787,-500.0,9.998e-05,2]
[396496940,1765006436837,-500.0,9.998e-05,2]
[396496941,1765006436888,-500.0,9.998e-05,2]
[396496942,1765006436939,-500.0,9.998e-05,2]
[396496943,1765006436988,-500.0,9.998e-05,2]
[396496944,1765006437037,-500.0,9.998e-05,2]
[396496945,1765006437086,-500.0,9.998e-05,2]
[396496946,1765006437139,-500.0,9.998e-05,2]
[396496947,1765006437192,-500.0,9.998e-05,2]
[396496948,1765006437299,150.0,7.662e-05,2]
[396496949,1765006437493,-500.0,9.998e-05,2]
[396496950,1765006437553,-500.0,9.998e-05,2]
[396496951,1765006437614,-500.0,9.998e-05,2]
[396496952,1765006437670,-500.0,9.998e-05,2]
[396496953,1765006437729,-500.0,9.998e-05,2]
[396496954,1765006437958,-500.0,9.998e-05,2]
[396496955,1765006438011,-500.0,9.998e-05,2]
[396496956,1765006438063,-500.0,9.998e-05,2]
[396496957,1765006438115,-500.0,9.998e-05,2]
[396496958,1765006438169,-500.0,9.998e-05,2]
[396496959,1765006438507,-500.0,9.998e-05,2]
[396496960,1765006438561,-500.0,9.998e-05,2]
[396496961,1765006438611,-500.0,9.998e-05,2]
[396496962,1765006438665,-500.0,9.998e-05,2]
[396496963,1765006438714,-500.0,9.998e-05,2]
[396496964,1765006438763,-500.0,9.998e-05,2]
[396496965,1765006438809,-500.0,9.998e-05,2]
[396496966,1765006438860,-500.0,9.998e-05,2]
[396496967,1765006438911,-500.0,9.998e-05,2]
[396496968,1765006438962,-500.0,9.998e-05,2]
[396496969,1765006439063,226.24,8.358e-05,2]
[396496970,1765006439271,-500.0,9.998e-05,2]
[396496971,1765006439320,-500.0,9.998e-05,2]
[396496972,1765006439372,-221.75865596,9.998e-05,2]
[396496973,1765006439427,-500.0,9.998e-05,2]
[396496974,1765006439482,-535.36939469,9.998e-05,2]
[396496975,1765006439537,-500.0,9.998e-05,2]
[396496976,1765006439588,-500.0,9.998e-05,2]
[396496977,1765006439641,-500.0,9.998e-05,2]
[396496978,1765006439695,-500.0,9.998e-05,2]
[396496979,1765006439751,-500.0,9.998e-05,2]
[396496980,1765006440096,339.36,9.055e-05,2]
[396496981,1765006440643,452.48,9.751e-05,2]
[396496982,1765006441851,-500.0,9.998e-05,2]
[396496983,1765006441906,-500.0,9.998e-05,2]
[396496984,1765006441962,-500.0,9.998e-05,2]
[396496985,1765006442019,-500.0,9.998e-05,2]
[396496986,1765006442074,-500.0,9.998e-05,2]
[396496987,1765006442130,-500.0,9.998e-05,2]
[396496988,1765006442185,-500.0,9.998e-05,2]
[396496989,1765006442240,-500.0,9.998e-05,2]
[396496990,1765006442298,-500.0,9.998e-05,2]
[396496991,1765006442354,-500.0,9.998e-05,2]
[396496992,1765006442599,-500.0,9.998e-05,2]
[396496993,1765006442655,-500.0,9.998e-05,2]
[396496994,1765006442711,-500.0,9.998e-05,2]
[396496995,1765006442768,-500.0,9.998e-05,2]
[396496996,1765006442827,-500.0,9.998e-05,2]
[396496997,1765006442885,-500.0,9.998e-05,2]
[396496998,1765006442942,-500.0,9.998e-05,2]
[396496999,1765006442999,-500.0,9.998e-05,2]
[396497000,1765006443056,-500.0,9.998e-05,2]
[396497001,1765006443114,-300.0,9.998e-05,2]
[396497002,1765006445899,-500.0,9.998e-05,2]
[396497003,1765006445957,-500.0,9.998e-05,2]
[396497004,1765006446014,-500.0,9.998e-05,2]
[396497005,1765006446069,-500.0,9.998e-05,2]
[396497006,1765006446129,-500.0,9.998e-05,2]
[396497007,1765006446188,-500.0,9.998e-05,2]
[396497008,1765006446247,-500.0,9.998e-05,2]
[396497009,1765006446305,-500.0,9.998e-05,2]
[396497010,1765006446364,-500.0,9.998e-05,2]
[396497011,1765006446422,-500.0,9.998e-05,2]
[396497012,1765006446802,-500.0,9.998e-05,2]
[396497013,1765006446860,-500.0,9.998e-05,2]
[396497014,1765006446917,-322.17586559,9.998e-05,2]
[396497015,1765006446976,-500.0,9.998e-05,2]
[396497016,1765006447032,-500.0,9.998e-05,2]
[396497017,1765006447089,-500.0,9.998e-05,2]
[396497018,1765006447148,-506.01875868,9.999e-05,2]
[396497019,1765006453170,-8396.17989374,9.898e-05,2]
[396497020,1765006453234,-3274.01402815,9.898e-05,2]
[396497021,1765006453285,-3451.9819437,9.898e-05,2]
[396497022,1765006476416,-211.72877927,9.8e-05,2]
[396497023,1765006503228,203.89,8.3e-05,2]
[396497024,1765006514260,150.0,7.423e-05,2]
[396497025,1765006514681,196.51,8.098e-05,2]
[396497026,1765006515193,294.76,8.773e-05,2]
[396497027,1765006515537,393.02,9.448e-05,2]
[396497029,1765006521108,-87.43685206,9.8e-05,2]
[396497030,1765006521132,-154.56314794,9.898e-05,2]
[396497031,1765006523944,-80.43685206,9.898e-05,2]
[396497032,1765006523969,-219.56314794,9.898e-05,2]
[396497048,1765006595253,150.0,7.41e-05,2]
[396497049,1765006595676,170.18,8.083e-05,2]
[396497050,1765006596108,255.27,8.757e-05,2]
[396497051,1765006596531,340.36,9.43e-05,2]
[396497052,1765006675145,150.0,7.427e-05,2]
[396497053,1765006675571,150.0,8.102e-05,2]
[396497054,1765006675981,220.31,8.777e-05,2]
[396497055,1765006676418,293.74,9.452e-05,2]
[396497062,1765006686178,-231.80387683,9.797e-05,2]
[396497067,1765006755962,150.0,7.44e-05,2]
[396497068,1765006756364,150.0,8.117e-05,2]
[396497069,1765006756797,189.22,8.793e-05,2]
[396497070,1765006757227,252.3,9.469e-05,2]
[396497071,1765006791593,-68.19612317,9.797e-05,2]
[396497072,1765006791618,-84.2832082,9.897e-05,2]
[396497073,1765006793449,-156.8170814,9.897e-05,2]
[396497074,1765006794579,-300.0,9.897e-05,2]
[396497075,1765006796195,-253.72317824,9.897e-05,2]
[396497076,1765006799575,-235.65124839,9.897e-05,2]
[396497077,1765006802193,-200.0,9.896e-05,2]
[396497079,1765006835782,150.0,8.358e-05,2]
[396497080,1765006835994,150.0,9.118e-05,2]
[396497082,1765006914548,150.0,7.425e-05,2]
[396497083,1765006914973,150.0,8.1e-05,2]
[396497084,1765006915879,150.0,8.775e-05,2]
[396497085,1765006916311,199.28,9.45e-05,2]
[396497086,1765006995972,150.0,7.418e-05,2]
[396497087,1765006996428,150.0,8.093e-05,2]
[396497088,1765006996845,150.0,8.767e-05,2]